bitfinex/quotes_ETHUSD_20250827
["timestamp","ask_amount","ask_price","bid_price","bid_amount"]
[1756259489928,0.2720545,4567.8,4567.7,5.67663664]
[1756259490510,0.2720545,4567.8,4567.7,1.88963664]
[1756259490733,0.2720545,4567.8,4567.7,5.67663664]
[1756259490918,0.2720545,4567.8,4567.7,1.88963664]
[1756259491125,0.2720545,4567.8,4567.7,5.67563664]
[1756259491321,0.2720545,4567.8,4567.7,5.471]
[1756259492735,7.3420545,4567.8,4567.7,5.471]
[1756259492911,10.3420545,4567.8,4567.7,5.471]
[1756259493449,10.6408545,4567.8,4567.7,1.685]
[1756259493617,10.6408545,4567.8,4567.7,5.468]
[1756259494010,10.3420545,4567.8,4567.7,5.468]
[1756259496554,3.2720545,4567.8,4567.7,5.468]
[1756259496926,3.2720545,4567.8,4567.7,1.685]
[1756259497258,3.2690545,4567.8,4567.7,5.466]
[1756259497458,3.2690545,4567.8,4567.7,6.2238]
[1756259498161,0.2690545,4567.8,4567.7,9.25440204]
[1756259498670,0.2690545,4567.8,4567.7,9.36400204]
[1756259501882,1e-08,4567.8,4567.7,14.51840204]
[1756259502046,1e-08,4567.8,4567.7,14.62800204]
[1756259503573,1e-08,4567.8,4567.7,15.28800204]
[1756259503949,1e-08,4567.8,4567.7,14.62300204]
[1756259504791,1e-08,4567.8,4567.7,10.84700204]
[1756259504951,1e-08,4567.8,4567.7,14.62300204]
[1756259507672,1e-08,4567.8,4567.7,10.84700204]
[1756259507877,1e-08,4567.8,4567.7,14.62500204]
[1756259509780,1e-08,4567.8,4567.7,15.28500204]
[1756259509977,1e-08,4567.8,4567.7,11.50700204]
[1756259510475,1e-08,4567.8,4567.7,14.62400204]
[1756259511107,1e-08,4568.3,4568.2,2.18904601]
[1756259511409,1e-08,4568.3,4568.2,6.40686246]
[1756259511706,1e-08,4568.3,4568.2,3.49426246]
[1756259511871,1e-08,4568.3,4568.2,7.27426246]
[1756259512209,1e-08,4568.3,4568.2,3.49426246]
[1756259512378,1e-08,4568.3,4568.2,7.46086864]
[1756259512578,1e-08,4568.3,4568.2,7.44953435]
[1756259513102,1e-08,4568.3,4568.2,7.00833435]
[1756259513306,1e-08,4568.3,4568.2,6.40124601]
[1756259514370,1e-08,4568.3,4568.2,6.08464601]
[1756259514569,1e-08,4568.3,4568.2,6.40124601]
[1756259515511,1e-08,4568.3,4568.2,6.569545]
[1756259515671,1e-08,4568.3,4568.2,7.27911236]
[1756259516077,0.00300001,4568.3,4568.2,3.17451236]
[1756259516393,1e-08,4568.3,4568.2,7.29144665]
[1756259516603,1e-08,4568.3,4568.2,7.28011236]
[1756259517114,1e-08,4568.8,4568.7,2.18880644]
[1756259517412,1e-08,4568.8,4568.7,7.66180644]
[1756259517591,1e-08,4568.8,4568.7,3.98240644]
[1756259517912,1e-08,4568.8,4568.7,8.10000644]
[1756259518110,1e-08,4568.8,4568.7,9.59819499]
[1756259519201,1e-08,4568.8,4568.7,7.78240644]
[1756259519718,1e-08,4568.8,4568.7,7.78140644]
[1756259520221,0.00300001,4568.8,4568.7,1.7936]
[1756259520518,0.30180001,4568.8,4568.7,5.484]
[1756259521621,0.30180001,4568.8,4568.7,5.483]
[1756259521836,0.96180001,4568.8,4568.7,5.483]
[1756259522122,0.96180001,4568.8,4568.7,1.684]
[1756259522327,0.66,4568.7,4568.0,1.684]
[1756259522485,0.66,4568.5,4568.1,3.799]
[1756259522685,0.66,4568.5,4568.2,3.478]
[1756259522686,0.66,4568.3,4568.2,3.478]
[1756259522903,1.143198,4568.3,4568.2,3.8]
[1756259523139,0.9648,4568.3,4568.2,3.8]
[1756259525150,3.0,4568.2,4567.9,1.684]
[1756259525348,0.3018,4568.1,4568.0,3.797]
[1756259525668,0.3048,4568.1,4568.0,3.797]
[1756259525842,0.9648,4568.1,4568.0,3.797]
[1756259527482,3.3048,4568.1,4568.0,3.797]
[1756259529435,3.003,4568.1,4568.0,3.797]
[1756259529662,3.9618,4568.1,4568.0,3.795]
[1756259529867,0.66,4568.0,4567.9,1.684]
[1756259530084,0.9588,4568.0,4567.9,5.479]
[1756259530278,0.99216427,4568.0,4567.8,0.02]
[1756259530488,0.9648,4568.0,4567.8,0.02]
[1756259530648,0.3048,4568.0,4567.9,3.688]
[1756259530849,11.0348,4568.0,4567.9,3.688]
[1756259531051,11.37747136,4568.0,4567.9,3.688]
[1756259531774,3.66,4567.9,4567.6,0.001]
[1756259532074,16.74955833,4567.7,4567.6,0.001]
[1756259532273,23.82555833,4567.7,4567.6,0.001]
[1756259532488,24.12145833,4567.7,4567.6,0.001]
[1756259535265,24.78145833,4567.7,4567.6,0.001]
[1756259538216,0.66,4567.4,4567.2,0.001]
[1756259538415,2.8494379,4567.4,4567.2,0.001]
[1756259538593,6.18164583,4567.3,4567.2,0.001]
[1756259538782,3.66,4567.2,4566.7,0.001]
[1756259539122,3.66,4567.0,4566.7,0.001]
[1756259539306,0.0089,4566.9,4566.7,0.001]
[1756259539495,0.9619,4566.9,4566.7,0.001]
[1756259540588,0.6689,4566.9,4566.7,0.001]
[1756259540786,1.11228196,4566.9,4566.7,0.001]
[1756259541316,1.40528196,4566.9,4566.7,0.001]
[1756259541614,1.11228196,4566.9,4566.7,0.001]
[1756259541777,1.11228196,4566.9,4566.8,0.3217]
[1756259541778,1.10338196,4566.9,4566.8,0.3217]
[1756259541982,3.0,4567.0,4566.8,0.791]
[1756259542382,7.07,4567.1,4566.9,0.4693]
[1756259542617,3.0,4567.1,4567.0,4.553]
[1756259545000,3.0,4567.1,4567.0,4.0837]
[1756259546230,3.0,4567.1,4567.0,4.0817]
[1756259546419,3.0,4567.1,4567.0,4.551]
[1756259547411,3.0,4567.1,4567.0,4.0817]
[1756259547733,3.0,4567.1,4567.0,0.3007]
[1756259547933,3.0,4567.1,4567.0,3.778]
[1756259548531,0.66,4566.9,4566.8,0.021]
[1756259548838,0.66,4567.0,4566.8,3.797]
[1756259549139,0.2988,4566.9,4566.8,3.797]
[1756259550218,0.66,4567.2,4566.8,3.797]
[1756259551843,0.66,4567.2,4567.1,0.2885]
[1756259553222,10.73,4567.2,4567.1,0.7479]
[1756259554121,10.73,4567.2,4567.1,0.2885]
[1756259554931,3.0,4567.1,4566.8,4.2564]
[1756259555130,3.0,4567.1,4566.8,3.797]
[1756259555652,3.663,4566.9,4566.8,0.021]
[1756259555855,10.733,4566.9,4566.8,3.79]
[1756259561359,10.73,4566.9,4566.8,4.0785]
[1756259561976,10.73,4566.9,4566.8,4.5379]
[1756259562438,10.73,4566.9,4566.8,4.0785]
[1756259562644,10.73,4566.9,4566.8,4.5379]
[1756259563150,10.73,4566.9,4566.8,4.0785]
[1756259565866,10.07,4566.9,4566.8,4.5379]
[1756259566967,10.07,4566.9,4566.8,4.5279]
[1756259570265,10.07,4566.9,4566.8,0.7689]
[1756259570463,10.07,4566.9,4566.8,4.5239]
[1756259570674,10.07,4566.9,4566.8,7.16620708]
[1756259570835,7.07,4566.9,4566.8,7.16620708]
[1756259571033,10.07,4566.9,4566.8,7.16620708]
[1756259572176,3.0,4566.9,4566.8,7.16620708]
[1756259573670,3.0,4566.9,4566.8,3.41120708]
[1756259573849,3.0,4566.9,4566.8,7.16320708]
[1756259579473,3.0,4566.9,4566.8,6.71411708]
[1756259579776,3.0,4566.9,4566.8,6.82371708]
[1756259584167,0.002,4567.2,4567.1,2.18957325]
[1756259584369,0.002,4567.2,4567.1,5.93757325]
[1756259584592,0.002,4567.2,4566.8,0.1306]
[1756259584797,0.3038,4567.2,4566.9,3.748]
[1756259585302,0.3038,4567.2,4566.8,0.021]
[1756259585600,0.3038,4567.2,4567.0,3.748]
[1756259585775,0.002,4567.2,4567.1,0.3117]
[1756259586181,0.002,4567.2,4567.1,0.7776]
[1756259586379,0.005,4567.2,4566.8,2.21070946]
[1756259586580,6.29266286,4566.9,4566.8,0.021]
[1756259586788,10.25710915,4566.9,4566.8,3.769]
[1756259586973,10.25710915,4566.9,4566.8,0.021]
[1756259587173,10.25710915,4566.9,4566.8,3.769]
[1756259587697,17.98710915,4566.9,4566.8,3.769]
[1756259588371,17.98710915,4566.9,4566.8,0.021]
[1756259588608,17.98710915,4566.9,4566.8,3.769]
[1756259588804,17.98710915,4566.9,4566.8,0.021]
[1756259588997,17.98710915,4566.9,4566.8,3.769]
[1756259590818,17.98410915,4566.9,4566.8,3.769]
[1756259591026,17.98710915,4566.9,4566.8,3.769]
[1756259592883,17.98710915,4566.9,4566.8,0.021]
[1756259593121,17.98710915,4566.9,4566.8,3.769]
[1756259594292,17.98710915,4566.9,4566.8,0.021]
[1756259594496,17.98710915,4566.9,4566.8,3.769]
[1756259596683,17.98410915,4566.9,4566.8,3.769]
[1756259598201,17.68230915,4566.9,4566.8,3.769]
[1756259598721,17.68230915,4566.9,4566.8,4.5466]
[1756259598722,10.07,4566.9,4566.8,4.5466]
[1756259599283,10.07,4566.9,4566.8,6.73631708]
[1756259600193,3.0,4566.9,4566.8,6.73631708]
[1756259600503,0.002,4567.2,4566.9,2.18966914]
[1756259600700,0.002,4567.2,4567.1,2.18957325]
[1756259601017,0.002,4567.2,4567.1,6.24927325]
[1756259601325,0.002,4567.2,4567.1,6.71517325]
[1756259603004,0.002,4567.2,4567.1,6.82477325]
[1756259604941,0.002,4567.2,4567.1,3.748]
[1756259605244,0.002,4568.1,4567.1,3.748]
[1756259605245,0.2495,4570.6,4569.7,2.18832746]
[1756259605541,0.2495,4570.6,4569.7,1.7936]
[1756259605542,6.54216286,4570.6,4569.7,1.7936]
[1756259605864,0.023,4569.8,4569.7,1.684]
[1756259606030,0.98271978,4569.8,4568.0,0.02]
[1756259606212,0.98271978,4569.8,4568.3,2.18897597]
[1756259606213,6.29266286,4568.9,4568.3,2.18897597]
[1756259606422,0.95536629,4569.8,4568.8,0.3117]
[1756259606423,6.29266286,4569.4,4568.8,0.3117]
[1756259606619,6.29266286,4569.4,4568.9,3.902]
[1756259607237,3.0,4569.3,4568.9,3.902]
[1756259607757,0.3208,4569.8,4569.7,2.18832746]
[1756259607758,0.02,4569.8,4569.7,2.18832746]
[1756259608042,0.02,4569.8,4569.7,8.54992746]
[1756259612672,0.02,4570.8,4570.5,2.18794442]
[1756259612963,0.02,4570.8,4570.7,2.18784868]
[1756259613163,0.02,4570.8,4570.7,6.41654868]
[1756259613347,0.02,4570.8,4570.7,6.85854868]
[1756259616060,0.02,4570.8,4570.7,6.96814868]
[1756259616234,1e-08,4570.8,4570.7,6.96814868]
[1756259616435,1e-08,4570.8,4570.7,8.60033743]
[1756259619752,1e-08,4570.8,4570.7,8.59533743]
[1756259621263,1e-08,4570.8,4570.7,4.67533743]
[1756259621475,1e-08,4570.8,4570.7,8.59233743]
[1756259621676,1e-08,4570.8,4570.7,4.23333743]
[1756259621987,1e-08,4570.8,4570.7,9.53794179]
[1756259621988,0.30380001,4570.8,4570.7,9.53794179]
[1756259622190,0.30580001,4570.8,4570.7,9.52663743]
[1756259622359,0.00200001,4570.8,4570.7,9.52663743]
[1756259623552,0.00200001,4570.8,4570.7,9.83033743]
[1756259623887,0.00200001,4570.8,4570.7,9.52663743]
[1756259626054,0.00200001,4570.8,4570.7,7.89444868]
[1756259626258,0.00500001,4570.8,4570.7,7.88744868]
[1756259627052,0.00200001,4570.8,4570.7,7.88744868]
[1756259628868,0.00200001,4570.8,4570.7,8.19114868]
[1756259629388,1e-08,4570.8,4570.7,9.31314868]
[1756259629588,1e-08,4570.8,4570.7,11.40143743]
[1756259629773,1e-08,4570.8,4570.7,6.83443743]
[1756259629954,1e-08,4570.8,4570.7,10.40763743]
[1756259630155,1e-08,4570.8,4570.7,6.48863743]
[1756259630456,1e-08,4570.8,4570.7,10.40763743]
[1756259630955,1e-08,4571.3,4571.2,2.18760938]
[1756259631183,1e-08,4571.3,4571.2,6.10460938]
[1756259631398,1e-08,4571.3,4571.2,6.85030938]
[1756259631694,1e-08,4571.3,4571.2,6.96990938]
[1756259631869,1e-08,4571.3,4571.2,7.88566851]
[1756259633579,1e-08,4571.3,4571.2,7.43866851]
[1756259634194,1e-08,4571.3,4571.2,7.88066851]
[1756259636123,1e-08,4571.3,4571.2,7.87566851]
[1756259636806,0.00300001,4571.3,4571.2,3.21296851]
[1756259636971,0.00300001,4571.3,4571.2,6.21020938]
[1756259637165,0.30380001,4571.3,4571.2,6.21120938]
[1756259637412,0.30380001,4571.3,4571.2,2.29720938]
[1756259637579,0.30380001,4571.3,4571.2,6.10160938]
[1756259637977,1e-08,4571.3,4571.2,7.24519856]
[1756259638189,1e-08,4571.3,4571.2,7.35479856]
[1756259638433,0.00300001,4571.3,4571.2,7.05109856]
[1756259638885,0.00300001,4571.3,4571.2,3.13709856]
[1756259639065,0.00300001,4571.3,4571.2,7.05809856]
[1756259640291,1e-08,4571.3,4571.2,7.05809856]
[1756259640698,0.00300001,4571.3,4571.2,2.29720938]
[1756259641007,0.30380001,4571.3,4571.2,6.21420938]
[1756259641181,0.00300001,4571.3,4571.2,6.21420938]
[1756259642370,0.30380001,4571.3,4571.2,0.1096]
[1756259642575,0.30380001,4571.3,4571.2,3.914]
[1756259643201,9.57876027,4571.3,4571.2,3.914]
[1756259643569,3.0,4571.2,4570.7,1.683]
[1756259643769,0.006,4570.8,4570.7,1.683]
[1756259643971,0.3039,4570.8,4570.7,5.596]
[1756259646912,0.3039,4570.8,4570.7,5.591]
[1756259648718,9.57886026,4570.8,4570.7,5.59]
[1756259648923,10.23886026,4570.8,4570.7,5.585]
[1756259649305,3.66,4570.7,4570.6,3.903]
[1756259649507,6.14574868,4570.7,4570.6,0.001]
[1756259649711,6.15464868,4570.7,4570.6,0.001]
[1756259649919,3.9668,4570.7,4570.6,0.001]
[1756259657409,3.9941481,4570.7,4570.2,3.899]
[1756259657620,3.9941481,4570.7,4570.2,0.001]
[1756259657621,9.93496026,4570.3,4570.2,0.001]
[1756259658004,10.23886026,4570.3,4570.2,0.001]
[1756259660292,3.66,4570.2,4569.8,0.02]
[1756259660490,0.02735169,4570.1,4569.8,0.02]
[1756259660693,3.66,4569.7,4569.0,1.683]
[1756259660900,10.57754231,4569.7,4569.2,3.881]
[1756259661124,10.85408822,4569.7,4569.2,3.881]
[1756259661292,10.85408822,4569.7,4569.2,0.001]
[1756259662293,13.04241568,4569.7,4569.2,0.001]
[1756259662804,10.85408822,4569.7,4569.2,0.001]
[1756259663007,13.04241568,4569.7,4569.2,0.001]
[1756259663323,10.85408822,4569.7,4569.2,0.001]
[1756259665703,13.04241568,4569.7,4569.2,0.001]
[1756259665919,6.27496026,4570.2,4569.6,0.7476]
[1756259666217,3.0,4570.1,4569.7,0.4612]
[1756259666418,6.27496026,4570.2,4570.1,0.2854]
[1756259666732,6.27496026,4570.2,4569.8,0.4612]
[1756259666733,3.0,4570.1,4569.8,0.4612]
[1756259666929,3.62749603,4570.1,4569.8,0.4612]
[1756259667612,3.62749603,4570.1,4570.0,0.2854]
[1756259667806,3.66,4570.8,4570.0,0.7466]
[1756259668006,0.66,4570.4,4570.0,0.2854]
[1756259668507,0.66,4570.4,4570.0,0.7454]
[1756259669420,0.66,4570.4,4570.1,0.46]
[1756259671629,0.66,4570.4,4570.3,0.2982]
[1756259671945,0.66,4570.4,4570.3,0.7582]
[1756259672831,0.66,4570.4,4570.3,0.2982]
[1756259674023,0.663,4570.4,4569.6,0.001]
[1756259674226,3.66,4570.0,4569.6,0.001]
[1756259674836,0.9638,4569.7,4569.6,0.001]
[1756259677635,0.66,4569.7,4569.6,0.001]
[1756259679142,0.663,4569.7,4569.6,0.001]
[1756259684954,0.66,4569.2,4568.8,0.02]
[1756259685116,7.83215409,4569.7,4568.8,0.02]
[1756259685117,3.66,4569.0,4568.8,0.02]
[1756259685316,5.85471063,4568.9,4568.8,0.02]
[1756259685517,0.666,4568.9,4568.8,0.02]
[1756259685718,2.85471063,4568.9,4568.8,0.02]
[1756259687633,0.666,4568.9,4568.8,0.02]
[1756259688260,5.85471063,4568.9,4568.8,0.02]
[1756259688489,6.19729324,4568.9,4568.8,0.02]
[1756259688768,4.00858261,4568.9,4568.8,0.02]
[1756259688935,6.19729324,4568.9,4568.8,0.02]
[1756259689136,5.84875853,4568.8,4568.2,1.684]
[1756259689338,0.66,4568.8,4568.2,2.144]
[1756259689546,0.6689,4568.8,4568.2,2.144]
[1756259690631,0.66,4568.7,4568.2,2.144]
[1756259690832,5.84880644,4568.7,4568.2,2.144]
[1756259691032,3.6689,4568.7,4568.2,2.144]
[1756259692165,5.88506652,4568.7,4568.2,2.144]
[1756259692367,3.6689,4568.7,4568.2,2.144]
[1756259694234,10.7389,4568.7,4568.2,2.144]
[1756259696867,10.73,4568.7,4568.6,0.2992]
[1756259697067,10.73,4568.7,4568.6,0.7592]
[1756259698199,10.73,4568.7,4568.6,0.2992]
[1756259698405,10.73,4568.7,4568.6,0.001]
[1756259699481,10.73,4568.7,4568.6,0.2898]
[1756259700179,10.73,4568.7,4568.6,0.001]
[1756259700180,10.733,4568.7,4568.6,0.001]
[1756259700383,12.92180644,4568.7,4568.6,0.001]
[1756259700569,10.733,4568.7,4568.6,0.001]
[1756259701599,10.73,4568.7,4568.6,0.001]
[1756259703573,7.07,4568.7,4568.6,0.7486]
[1756259704010,3.0,4568.7,4568.6,0.7486]
[1756259706678,3.0,4568.7,4568.6,4.5586]
[1756259708806,9.60232034,4568.7,4568.6,0.001]
[1756259709005,9.57496026,4568.7,4568.6,0.001]
[1756259709787,16.64496026,4568.7,4568.6,0.001]
[1756259709988,16.34496026,4568.7,4568.6,0.001]
[1756259710796,16.34496026,4568.7,4568.6,0.2898]
[1756259712626,16.34496026,4568.7,4568.6,0.001]
[1756259714399,16.62656026,4568.7,4568.6,0.001]
[1756259714806,16.62856026,4568.7,4568.6,0.001]
[1756259716302,16.34696026,4568.7,4568.6,0.001]
[1756259718581,16.34696026,4568.7,4568.6,0.2898]
[1756259719044,16.34696026,4568.7,4568.6,0.001]
[1756259719604,16.34696026,4568.7,4568.6,0.7486]
[1756259719813,10.072,4568.7,4568.6,0.7486]
[1756259720016,7.072,4568.7,4568.6,0.7486]
[1756259720213,10.072,4568.7,4568.6,0.7486]
[1756259723847,6.27696026,4569.2,4569.1,2.18861482]
[1756259723848,0.002,4569.2,4569.1,2.18861482]
[1756259724054,0.02,4569.8,4569.6,2.18837535]
[1756259724353,0.02,4569.8,4569.6,6.64057838]
[1756259724518,0.02,4569.8,4569.6,7.37686086]
[1756259725215,0.02,4569.8,4569.6,7.48612231]
[1756259733239,0.02,4569.8,4569.6,7.47412231]
[1756259735478,0.02,4569.8,4569.6,7.47308741]
[1756259735843,0.02,4569.8,4569.6,7.47008741]
[1756259737368,0.02,4569.8,4569.6,7.55781541]
[1756259738974,0.02,4569.8,4569.6,7.55772037]
[1756259742574,0.3123,4569.7,4569.6,6.5186579]
[1756259742740,0.3123,4569.7,4569.6,2.18837535]
[1756259742944,0.3123,4569.7,4569.6,5.97137535]
[1756259744257,0.002,4569.7,4569.6,5.97137535]
[1756259746257,0.002,4569.7,4569.6,6.17550197]
[1756259746438,0.002,4569.7,4569.6,5.97137535]
[1756259747090,0.002,4569.7,4569.6,6.17550197]
[1756259747879,0.002,4569.7,4569.6,6.17561628]
[1756259749155,0.002,4569.7,4569.6,6.47831628]
[1756259749679,0.002,4569.7,4569.6,7.4002729]
[1756259749887,0.002,4569.7,4569.6,7.9530729]
[1756259750251,0.002,4569.7,4569.6,10.9530729]
[1756259751373,0.002,4569.7,4569.6,10.63923197]
[1756259751576,0.002,4569.7,4569.6,10.95359215]
[1756259752571,0.002,4569.7,4569.6,10.95375529]
[1756259756100,0.002,4569.7,4569.6,7.95404299]
[1756259757855,0.002,4569.7,4569.6,8.04177199]
[1756259759463,0.002,4569.7,4569.6,7.50984299]
[1756259760297,0.2887,4569.7,4569.6,1.23676764]
[1756259760501,0.7359,4569.7,4569.6,3.98721102]
[1756259761097,0.7359,4569.7,4569.6,3.782]
[1756259761294,0.7359,4569.7,4569.1,1.685]
[1756259761602,9.27496026,4569.2,4569.1,1.685]
[1756259761808,10.00886026,4569.2,4569.1,1.685]
[1756259761968,10.00886026,4569.2,4569.1,5.467]
[1756259763106,10.21376716,4569.2,4569.1,5.467]
[1756259764082,10.00886026,4569.2,4569.1,5.467]
[1756259767177,3.0,4569.2,4569.1,8.49337842]
[1756259767506,7.07,4569.6,4569.5,2.18842324]
[1756259767697,7.07,4569.6,4569.5,5.97042324]
[1756259767899,10.07,4569.6,4569.5,5.97042324]
[1756259769508,0.002,4569.7,4569.6,2.18837535]
[1756259769718,0.002,4569.7,4569.6,2.64987535]
[1756259769929,0.002,4569.7,4569.6,2.95357535]
[1756259770616,0.002,4569.7,4569.6,2.49207535]
[1756259770784,3.2887,4569.7,4569.3,2.18849189]
[1756259770985,0.002,4569.7,4569.3,0.1096]
[1756259771316,0.002,4569.7,4569.6,2.60167535]
[1756259771518,0.002,4569.7,4569.6,5.97037535]
[1756259771687,0.2887,4569.7,4569.6,5.97037535]
[1756259772686,9.56366026,4569.7,4569.6,5.97037535]
[1756259773642,9.27696026,4569.7,4569.6,5.97037535]
[1756259774186,9.56366026,4569.7,4569.6,3.782]
[1756259775019,9.56366026,4569.7,4569.6,3.781]
[1756259775521,9.56366026,4569.7,4569.6,5.96937535]
[1756259777292,9.27696026,4569.7,4569.6,6.27307535]
[1756259777496,9.27696026,4569.7,4569.6,6.73457535]
[1756259777696,3.002,4569.7,4569.6,7.68849361]
[1756259777894,0.002,4569.7,4569.6,7.68849361]
[1756259778308,0.002,4569.7,4569.6,7.79809361]
[1756259780589,0.002,4569.7,4569.6,7.33659361]
[1756259780827,0.002,4569.7,4569.6,6.38267535]
[1756259781021,0.002,4569.7,4569.6,6.84417535]
[1756259783295,0.2887,4569.7,4569.6,6.07797535]
[1756259784601,0.7359,4569.7,4569.6,3.8896]
[1756259784802,0.7359,4569.7,4569.6,0.1096]
[1756259785013,0.7359,4569.7,4569.6,3.78]
[1756259785413,0.7359,4569.7,4569.1,1.685]
[1756259785734,3.0,4569.3,4569.2,3.78]
[1756259785943,3.7339,4569.3,4569.2,3.78]
[1756259786931,3.7339,4569.3,4568.9,1.683]
[1756259787102,0.65163356,4569.2,4569.0,3.78]
[1756259787301,0.4472,4569.2,4569.0,3.78]
[1756259787520,0.7339,4569.1,4569.0,3.78]
[1756259788203,3.0,4569.0,4568.6,1.684]
[1756259788403,0.20438542,4568.9,4568.8,3.78]
[1756259788671,0.91928542,4568.9,4568.8,2.59170719]
[1756259789198,0.91928542,4568.9,4568.8,0.90870719]
[1756259789399,0.91928542,4568.9,4568.8,2.22813263]
[1756259789599,10.19424568,4568.9,4568.8,2.22813263]
[1756259790035,3.0,4568.8,4568.1,1.684]
[1756259790236,9.27496026,4568.3,4568.2,0.277]
[1756259790404,9.76644568,4568.3,4568.2,0.277]
[1756259790600,10.19424568,4568.3,4568.2,0.277]
[1756259791026,9.76644568,4568.3,4568.2,0.277]
[1756259791348,9.56206026,4568.3,4568.2,0.277]
[1756259791635,0.002,4569.7,4568.3,0.66]
[1756259791834,0.002,4569.7,4569.6,2.60807535]
[1756259792037,0.002,4569.7,4569.6,8.08339287]
[1756259792202,0.002,4569.7,4569.6,8.52187535]
[1756259797325,0.002,4569.7,4569.6,9.5878484]
[1756259799946,0.002,4569.7,4569.6,9.5868484]
[1756259801340,0.002,4569.7,4569.6,5.8078484]
[1756259801538,0.002,4569.7,4569.6,9.5868484]
[1756259801738,0.002,4569.7,4569.6,9.6745784]
[1756259805339,0.002,4569.7,4569.6,9.2247784]
[1756259805660,0.7169,4569.7,4569.6,7.65137535]
[1756259806021,0.7169,4569.7,4568.9,1.683]
[1756259806218,0.4278,4569.6,4568.9,1.683]
[1756259806521,0.4278,4569.6,4569.0,3.779]
[1756259806727,0.2871,4569.1,4569.0,3.779]
[1756259806961,0.7149,4569.1,4569.0,3.779]
[1756259807259,0.2871,4569.1,4569.0,3.779]
[1756259808174,0.002,4569.7,4569.0,3.779]
[1756259808175,0.4298,4569.7,4569.0,3.79032471]
[1756259808701,0.002,4569.7,4569.5,2.18841698]
[1756259808979,0.002,4569.7,4569.6,5.97769335]
[1756259809149,0.002,4569.7,4569.6,5.96637535]
[1756259810052,0.002,4569.7,4569.6,6.27647535]
[1756259811080,0.002,4569.7,4569.6,6.72627535]
[1756259811244,0.002,4569.7,4569.6,7.62870822]
[1756259811962,0.002,4569.7,4569.6,3.40090822]
[1756259812171,0.2891,4569.7,4569.6,5.96737535]
[1756259812694,0.002,4569.7,4569.6,5.96737535]
[1756259812971,0.002,4569.7,4569.6,6.27747535]
[1756259815959,0.2891,4569.7,4569.6,2.18837535]
[1756259816168,0.2891,4569.7,4569.6,3.779]
[1756259816508,0.2891,4569.7,4569.6,5.96737535]
[1756259817562,0.002,4569.7,4569.6,5.96737535]
[1756259817900,0.2891,4569.7,4569.6,5.96737535]
[1756259820498,0.2891,4569.7,4569.6,3.778]
[1756259821112,0.7469,4569.7,4569.6,3.778]
[1756259824204,0.2891,4569.7,4569.6,3.778]
[1756259826502,0.002,4569.7,4569.6,6.26467535]
[1756259826806,0.002,4569.7,4569.6,6.72297535]
[1756259828777,0.002,4569.7,4569.6,2.94497535]
[1756259829078,0.002,4569.7,4569.6,6.73429287]
[1756259829279,0.002,4569.7,4569.6,6.72297535]
[1756259830182,0.002,4569.7,4569.6,7.6250776]
[1756259830392,0.002,4569.7,4569.6,7.7346776]
[1756259838281,0.002,4569.7,4569.6,2.29797535]
[1756259838282,0.287,4569.7,4569.6,2.29797535]
[1756259838486,0.7468,4569.7,4569.6,5.96437535]
[1756259838918,0.287,4569.7,4569.6,5.96437535]
[1756259840115,0.7468,4569.7,4569.6,3.776]
[1756259840333,1.12348,4569.7,4569.6,3.776]
[1756259841633,3.0,4570.0,4569.6,3.776]
[1756259841634,0.002,4570.2,4569.7,0.66]
[1756259841927,0.002,4570.2,4570.1,2.95773592]
[1756259842095,0.002,4570.2,4570.1,3.26734746]
[1756259842302,0.002,4570.2,4570.1,3.72564746]
[1756259842625,0.002,4570.2,4570.1,3.81402167]
[1756259842787,0.002,4570.2,4570.1,7.60202167]
[1756259843420,0.002,4571.2,4570.2,2.18808804]
[1756259843619,0.002,4571.2,4570.6,2.18789655]
[1756259843923,0.002,4571.2,4570.6,6.3931021]
[1756259844119,0.002,4571.2,4570.6,7.61983681]
[1756259844324,0.002,4571.2,4570.6,8.07813681]
[1756259844526,0.002,4571.2,4570.6,4.29213681]
[1756259844724,0.002,4571.2,4570.6,6.83909655]
[1756259847433,0.002,4571.2,4570.6,7.00729651]
[1756259850017,0.002,4571.2,4570.6,7.09500651]
[1756259851615,1e-08,4570.7,4570.6,7.09500651]
[1756259855630,1e-08,4570.8,4570.7,2.18784868]
[1756259855856,1e-08,4570.8,4570.7,5.05605369]
[1756259856042,1e-08,4570.8,4570.7,5.33024933]
[1756259857748,1e-08,4570.8,4570.7,5.41795333]
[1756259864774,1e-08,4570.8,4570.7,6.07795333]
[1756259865960,0.002,4571.7,4571.6,2.18741797]
[1756259866160,0.002,4571.7,4571.6,7.75401797]
[1756259867273,0.002,4571.7,4571.6,8.03951797]
[1756259867778,0.002,4571.7,4571.6,8.12720797]
[1756259867966,0.002,4571.7,4571.6,7.84170797]
[1756259868165,0.002,4571.7,4571.6,8.89106766]
[1756259869071,0.2924,4571.7,4571.6,8.89106766]
[1756259869765,0.7469,4571.7,4571.6,8.89106766]
[1756259869947,0.2924,4571.7,4571.6,8.89106766]
[1756259876780,0.2924,4571.7,4571.6,5.11706766]
[1756259877083,0.2924,4571.7,4571.6,8.89006766]
[1756259877452,0.002,4571.7,4571.6,8.89006766]
[1756259877766,0.294,4571.7,4571.6,5.11706766]
[1756259877971,0.294,4571.7,4571.6,7.75301797]
[1756259878553,0.002,4571.7,4571.6,7.75301797]